fUSD/lending_fUSD_20241020
["ID","MTS","AMOUNT","RATE_DAILY","PERIOD"]
[340541011,1729423831856,-204.8997,0.00010959,2]
[340541013,1729423831865,-500.0,0.00010973,2]
[340541014,1729423831874,-500.0,0.00010973,2]
[340541015,1729423831883,-150.0,0.00010999,2]
[340541016,1729423831892,-367.95065266,0.00010999,2]
[340541017,1729423831901,-500.0,0.00010999,2]
[340541018,1729423831910,-500.0,0.00010999,2]
[340541019,1729423831919,-500.0,0.00010999,2]
[340541020,1729423831928,-485.4468804,0.00010999,2]
[340541021,1729423831937,-248.76059554,0.00011,2]
[340541022,1729423831946,-169087.97732687,0.00011,2]
[340541023,1729423831957,-456.33428005,0.00011,2]
[340541024,1729423831969,-679.79688,0.00011,2]
[340541025,1729423831992,-793.75,0.00011,2]
[340541026,1729423832003,-962.78095166,0.00011,2]
[340541027,1729423832014,-22253.86192698,0.00011,2]
[340541028,1729423832025,-2697.1634484,0.00011,2]
[340541029,1729423832036,-170990.96094,0.00011,2]
[340541030,1729423832046,-4729.43617998,0.00011,2]
[340541034,1729423837833,-1043.64469996,0.00011,2]
[340541035,1729423837846,-326.45,0.00011,2]
[340541036,1729423837857,-881.9533299,0.00011,2]
[340541038,1729423837867,-559.87508375,0.00011,2]
[340541039,1729423837878,-442.25,0.00011,2]
[340541040,1729423837890,-4236.72490095,0.00011,2]
[340541041,1729423837901,-3861.57904239,0.00011,2]
[340541042,1729423837913,-4852.6012,0.00011,2]
[340541043,1729423837924,-3872.86848327,0.00011,2]
[340541044,1729423837974,-1100.67125844,0.00011,2]
[340541045,1729423837989,-24609.1290932,0.00011,2]
[340541046,1729423838000,-4750.61115174,0.00011,2]
[340541047,1729423838011,-469.45,0.00011,2]
[340541048,1729423838023,-1323.56384653,0.00011,2]
[340541049,1729423838034,-443.13092382,0.00011,2]
[340541050,1729423838046,-569.24618915,0.00011,2]
[340541051,1729423838057,-818.74825266,0.00011,2]
[340541052,1729423838068,-2234.28306925,0.00011,2]
[340541053,1729423838080,-307.07755376,0.00011,2]
[340541054,1729423838092,-484.43905378,0.00011,2]
[340541055,1729423838103,-709.08266212,0.00011,2]
[340541056,1729423838114,-800114.58753801,0.00011,2]
[340541057,1729423838125,-515.28705452,0.00011,2]
[340541058,1729423838136,-1107.58937578,0.00011,2]
[340541059,1729423838147,-584316.59025488,0.00011,2]
[340541060,1729423838158,-3219.975661,0.00011,2]
[340541061,1729423838169,-3725.39043297,0.00011,2]
[340541062,1729423838180,-10057.58,0.00011,2]
[340541063,1729423838191,-575.0,0.00011,2]
[340541064,1729423838202,-4969.03999999,0.00011,2]
[340541065,1729423838213,-32160.03000479,0.00011,2]
[340541066,1729423838223,-6171.06945989,0.00011,2]
[340541067,1729423838256,-150.0,0.00011,2]
[340541068,1729423838305,-300.001004,0.00011,2]
[340541071,1729423839822,-5520.4318433,0.00011,2]
[340541074,1729423839837,-24104.6103854,0.00011,2]
[340541078,1729423839872,-322.85018007,0.00011,2]
[340541080,1729423839883,-347.78074878,0.00011,2]
[340541082,1729423839895,-540.18000005,0.00011,2]
[340541086,1729423839923,-3593.08737091,0.00011,2]
[340541088,1729423839934,-810.14703584,0.00011,2]
[340541090,1729423839953,-307.46014093,0.00011,2]
[340541091,1729423839967,-330.63395953,0.00011,2]
[340541094,1729423839992,-503.4787228,0.00011,2]
[340541096,1729423840003,-47982.34644844,0.00011,2]
[340541099,1729423840022,-1079.800005,0.00011,2]
[340541102,1729423840034,-4725.0,0.00011,2]
[340541105,1729423840057,-17049.04648691,0.00011,2]
[340541111,1729423840112,-3021.97764252,0.00011,2]
[340541113,1729423840125,-388.58612,0.00011,2]
[340541115,1729423840137,-915.86338484,0.00011,2]
[340541116,1729423840149,-401.39217047,0.00011,2]
[340541220,1729423842898,-41065.02540289,0.00011,2]
[340541222,1729423842910,-883.32723249,0.00011,2]
[340541224,1729423842921,-297.59077079,0.00011,2]
[340541226,1729423842932,-901761.99899461,0.00011,2]
[340541228,1729423842944,-1280283.22780248,0.00011,2]
[340541231,1729423842984,-1112.11253646,0.00011,2]
[340541235,1729423843054,-33795.41916693,0.00011,2]
[340541237,1729423843065,-3939.92439593,0.00011,2]
[340541238,1729423843076,-311.308985,0.00011,2]
[340541239,1729423843088,-6428.28499988,0.00011,2]
[340541240,1729423843104,-2694.80145435,0.00011,2]
[340541241,1729423843115,-935.898057,0.00011,2]
[340541242,1729423843126,-16513.05539984,0.00011,2]
[340541243,1729423843137,-274.53646718,0.00011,2]
[340541244,1729423843158,-17420.2699562,0.00011,2]
[340541292,1729423845856,-514769.58115276,0.00011,2]
[340541293,1729423845867,-1994.71489037,0.00011,2]
[340541294,1729423845880,-715.05,0.00011,2]
[340541295,1729423845993,-695.19249147,0.00011,2]
[340541296,1729423846004,-608.35712949,0.00011,2]
[340541297,1729423846134,-10715.34333337,0.00011,2]
[340541298,1729423846145,-357.26507167,0.00011,2]
[340541299,1729423846156,-1900.0,0.00011,2]
[340541300,1729423882945,1366.4,0.00027,60]
[340541311,1729423957005,-305.92508996,0.00010573,2]
[340541323,1729424226255,68323.69374501,0.00027,60]
[340541324,1729424535716,-448.02309644,0.00010473,2]
[340541325,1729424535741,-1136.69641004,0.00010573,2]
[340541326,1729424535766,-165.454,0.0001078,2]
[340541327,1729424535787,-3126.0,0.00010781,2]
[340541328,1729424535809,-159.85984811,0.000109,2]
[340541329,1729424535831,-158.68198988,0.000109,2]
[340541330,1729424535852,-150.21922956,0.000109,2]
[340541331,1729424535873,-1466.786944,0.00010944,2]
[340541332,1729424535894,-174.06,0.00010959,2]
[340541333,1729424535916,-783.4,0.00010959,2]
[340541334,1729424535940,-172.70241251,0.00010973,2]
[340541335,1729424535964,-1000.0,0.00010999,2]
[340541336,1729424535986,-150.0,0.00010999,2]
[340541337,1729424536008,-220.60520893,0.00010999,2]
[340541338,1729424536031,-346.70521199,0.00010999,2]
[340541339,1729424536058,-1007616.70893612,0.00011,2]
[340541340,1729424536085,-865711.67296228,0.00011,2]
[340541341,1729424848103,-342.9054577,0.00010473,2]
[340541360,1729424948003,167.41,0.0001037,2]
[340541361,1729425006248,250.0,0.0001,2]
[340541364,1729425032010,-2972.5589423,0.00010473,2]
[340541365,1729425032019,-515.16560138,0.000109,2]
[340541366,1729425032031,-370.24089862,0.000109,2]
[340541367,1729425032040,-6683.12826125,0.000109,2]
[340541368,1729425032050,-3700.0,0.000109,2]
[340541369,1729425032061,-504.13143199,0.000109,2]
[340541370,1729425032072,-1137.33097441,0.000109,2]
[340541371,1729425032083,-6713.82913235,0.000109,2]
[340541372,1729425032093,-1003.13141524,0.00010999,2]
[340541373,1729425032103,-265056.40823526,0.00011,2]
[340541374,1729425032118,-337.36323209,0.00011,2]
[340541375,1729425032129,-2443.0,0.00011,2]
[340541376,1729425032140,-5168.68532224,0.00011,2]
[340541377,1729425032151,-295.44814184,0.00011,2]
[340541378,1729425032163,-8741.94797892,0.00011,2]
[340541379,1729425032174,-909.3594811,0.00011,2]
[340541380,1729425032184,-712.8352503,0.00011,2]
[340541381,1729425032195,-413.47322908,0.00011,2]
[340541382,1729425032206,-6149.07558323,0.00011,2]
[340541383,1729425032218,-39136.3591014,0.00011,2]
[340541384,1729425032230,-404.0,0.00011,2]
[340541385,1729425032241,-300.0,0.00011,2]
[340541386,1729425032252,-573.03210488,0.00011,2]
[340541387,1729425032263,-300.0,0.00011,2]
[340541388,1729425032273,-811.05669613,0.00011,2]
[340541389,1729425032284,-493.5770007,0.00011,2]
[340541390,1729425032295,-264.82796935,0.00011,2]
[340541391,1729425032306,-349.70936002,0.00011,2]
[340541392,1729425032339,-15870.01289146,0.00011,2]
[340541398,1729425038128,-6776.7347228,0.00011,2]
[340541399,1729425038411,-474825.89513154,0.00011,2]
[340541400,1729425038427,-6491.36468044,0.00011,2]
[340541401,1729425038481,-340.5,0.00011,2]
[340541405,1729425040066,-3748.691925,0.00011,2]
[340541406,1729425040239,-1013.87102963,0.00011,2]
[340541407,1729425040251,-885.4064957,0.00011,2]
[340541408,1729425040301,-15202.43855867,0.00011,2]
[340541432,1729425043119,-404.0366,0.00011,2]
[340541433,1729425043130,-802.06501464,0.00011,2]
[340541434,1729425043240,-228400.11413706,0.00011,2]
[340541435,1729425043304,-4736.47255329,0.00011,2]
[340541436,1729425046005,-658.24612596,0.00011,2]
[340541437,1729425046066,-297.276,0.00011,2]
[340541438,1729425046127,-1882.69326063,0.00011,2]
[340541439,1729425046382,-799.54911924,0.00011,2]
[340541440,1729425046393,-5687.919,0.00011,2]
[340541442,1729425153826,-150.0,0.00010845,2]
[340541443,1729425156368,-3021.97764252,0.00010845,2]
[340541444,1729425423940,250.0,0.00010312,2]
[340541445,1729425459283,-305.92508996,0.00010431,2]
[340541446,1729425460723,-150.0,0.00010431,2]
[340541447,1729425461046,150.0,0.00010396,2]
[340541448,1729425461067,155.92508996,0.00010396,2]
[340541449,1729425461092,1537.78138404,0.00010396,2]
[340541450,1729425475446,150.0,0.00010378,2]
[340541451,1729425497377,1222.86,8.546e-05,2]
[340541452,1729425510801,23900.0,0.00010394,2]
[340541453,1729425525097,167.41,8.228e-05,2]
[340541454,1729425536364,7000.0,0.00010281,2]
[340541455,1729425572299,364.6,0.00010281,2]
[340541456,1729425602334,150.0,0.00010281,2]
[340541457,1729425602521,150.0,0.00010281,2]
[340541458,1729425602697,150.0,0.00010281,2]
[340541459,1729425602880,150.0,0.00010281,2]
[340541460,1729425603088,150.0,0.00010281,2]
[340541461,1729425603288,150.0,0.00010281,2]
[340541462,1729425603466,150.0,0.00010281,2]
[340541463,1729425603686,150.0,0.00010281,2]
[340541464,1729425603906,150.0,0.00010281,2]
[340541465,1729425604089,150.0,0.00010281,2]
[340541466,1729425604274,150.0,0.00010281,2]
[340541467,1729425604492,150.0,0.00010281,2]
[340541468,1729425604674,150.0,0.00010281,2]
[340541469,1729425604845,150.0,0.00010281,2]
[340541470,1729425605022,150.0,0.00010281,2]
[340541471,1729425605376,150.0,0.00010281,2]
[340541472,1729425605556,150.0,0.00010281,2]
[340541473,1729425605735,150.0,0.00010281,2]
[340541474,1729425605949,150.0,0.00010281,2]
[340541475,1729425606122,150.0,0.00010281,2]
[340541476,1729425606307,150.0,0.00010281,2]
[340541477,1729425606488,179.47633435,0.00010281,2]
[340541478,1729425608033,168.49,0.00010268,2]
[340541480,1729425666326,353.6,0.00010339,2]
[340541481,1729425722977,3337.28,0.00010362,2]
[340541482,1729425727188,16228.27,0.00010277,2]
[340541483,1729425775066,444.23,0.00010254,2]
[340541484,1729425812235,36022.66,0.00010329,2]
[340541485,1729425813618,200.0,0.00010273,2]
[340541486,1729425867833,3710.15,0.0001026,2]
[340541487,1729425895841,426.59,0.00010305,2]
[340541488,1729425920911,250.0,0.00010356,2]
[340541489,1729426014492,1161.71,8.745e-05,2]
[340541490,1729426150269,258.52650001,0.0001038,2]
[340541491,1729426158185,1000.0,0.00010242,2]
[340541492,1729426203304,23900.0,0.00010321,2]
[340541496,1729426232185,-720.65,0.00010428,2]
[340541497,1729426232196,-104.33309306,0.00010449,2]
[340541498,1729426232238,-468.37690694,0.00010449,2]
[340541499,1729426232249,-250.0,0.00010459,2]
[340541500,1729426232261,-204.93,0.00010459,2]
[340541501,1729426232271,-500.0,0.0001048,2]
[340541502,1729426232283,-7111.827022,0.0001048,2]
[340541503,1729426232295,-595.01,0.00010481,2]
[340541504,1729426232306,-630.74028632,0.00010567,2]
[340541505,1729426232319,-577.08950482,0.00010567,2]
[340541506,1729426232335,-1089.32754268,0.00010567,2]
[340541507,1729426232350,-680.31,0.00010567,2]
[340541508,1729426232365,-148.53266618,0.00010567,2]
[340541509,1729426232376,-258.52649999,0.00010573,2]
[340541510,1729426232388,-8863.22930375,0.000108,2]
[340541511,1729426232401,-5389.97259625,0.000108,2]
[340541512,1729426232412,-202.59965951,0.000108,2]
[340541513,1729426232421,-150.0,0.00010805,2]
[340541514,1729426232432,-1509.94487785,0.00010805,2]
[340541515,1729426232444,-1577.09512215,0.00010805,2]
[340541516,1729426232455,-499.99,0.00010806,2]
[340541517,1729426232465,-1617.12,0.00010806,2]
[340541518,1729426232477,-1738.23,0.00010806,2]
[340541519,1729426232488,-176.364,0.00010807,2]
[340541520,1729426232500,-2865.14,0.00010807,2]
[340541521,1729426232511,-299.99,0.00010807,2]
[340541522,1729426232521,-418.195,0.00010807,2]
[340541523,1729426232531,-603.32,0.00010807,2]
[340541524,1729426232541,-2590.96,0.00010807,2]
[340541525,1729426232553,-327.19,0.00010807,2]
[340541526,1729426232564,-681.19,0.00010807,2]
[340541527,1729426232576,-1113.87,0.00010807,2]
[340541528,1729426232588,-150.99,0.00010807,2]
[340541529,1729426232600,-172.70241251,0.00010873,2]
[340541530,1729426232614,-1000.0,0.00010899,2]
[340541531,1729426232625,-2667.7802,0.000109,2]
[340541532,1729426232636,-159.85984811,0.000109,2]
[340541533,1729426232647,-100638.1585,0.000109,2]
[340541534,1729426232657,-160.91279698,0.000109,2]
[340541535,1729426232668,-3749.52358942,0.000109,2]
[340541536,1729426232679,-173.87190492,0.000109,2]
[340541537,1729426232689,-150.21922956,0.000109,2]
[340541538,1729426232700,-180.61,0.00010948,2]
[340541539,1729426232711,-154.75,0.00010959,2]
[340541540,1729426232721,-152.82,0.00010959,2]
[340541541,1729426232732,-232.11,0.00010959,2]
[340541542,1729426232742,-4062.91,0.00010959,2]
[340541543,1729426232752,-301.54,0.00010959,2]
[340541544,1729426232763,-251.29,0.00010959,2]
[340541545,1729426232773,-209.4,0.00010959,2]
[340541546,1729426232783,-174.5,0.00010959,2]
[340541547,1729426232794,-872.55,0.00010959,2]
[340541548,1729426232804,-200.26574765,0.00010973,2]
[340541549,1729426232815,-500.0,0.00010973,2]
[340541550,1729426232825,-501.25872657,0.00010973,2]
[340541551,1729426232835,-500.0,0.00010973,2]
[340541552,1729426232846,-1000.0,0.00010999,2]
[340541553,1729426232856,-322.52701617,0.00010999,2]
[340541554,1729426232867,-220.60520893,0.00010999,2]
[340541555,1729426232877,-96360.61765503,0.00011,2]
[340541556,1729426232890,-5351.11187086,0.00011,2]
[340541563,1729426238212,-2812.36164405,0.00011,2]
[340541564,1729426238322,-313.64,0.00011,2]
[340541565,1729426238334,-427.20419193,0.00011,2]
[340541566,1729426238346,-147017.20422146,0.00011,2]
[340541567,1729426238596,-907.7184,0.00011,2]
[340541568,1729426238621,-518.62206885,0.00011,2]
[340541569,1729426238636,-1168.70766274,0.00011,2]
[340541570,1729426238648,-93089.41945583,0.00011,2]
[340541571,1729426238663,-124088.5006486,0.00011,2]
[340541572,1729426238679,-877.0545,0.00011,2]
[340541573,1729426238690,-4630.48861645,0.00011,2]
[340541575,1729426238705,-228832.23531975,0.00011,2]
[340541586,1729426240274,-271.0,0.00011,2]
[340541587,1729426240286,-479.84134893,0.00011,2]
[340541588,1729426240297,-692.26579316,0.00011,2]
[340541589,1729426240382,-1875.2073525,0.00011,2]
[340541590,1729426240393,-2852.14112,0.00011,2]
[340541591,1729426240437,-14317.07754689,0.00011,2]
[340541592,1729426240448,-731.62454412,0.00011,2]
[340541593,1729426240459,-795.80999998,0.00011,2]
[340541594,1729426240470,-282.38119251,0.00011,2]
[340541595,1729426240481,-6817.107,0.00011,2]
[340541596,1729426240496,-5807.5824484,0.00011,2]
[340541597,1729426240507,-1283.81958987,0.00011,2]
[340541598,1729426240549,-864.85475257,0.00011,2]
[340541601,1729426240560,-770.0,0.00011,2]
[340541609,1729426243176,-873.04153788,0.00011,2]
[340541612,1729426243189,-276.07196702,0.00011,2]
[340541620,1729426243555,-309.929557,0.00011,2]
[340541621,1729426243566,-6014.28110938,0.00011,2]
[340541622,1729426243577,-691.61941026,0.00011,2]
[340541623,1729426243588,-207853.33118935,0.00011,2]
[340541624,1729426243606,-1096.63868295,0.00011,2]
[340541625,1729426243617,-9992.84154678,0.00011,2]
[340541626,1729426243628,-10197.54546216,0.00011,2]
[340541627,1729426243651,-9924.64691084,0.00011,2]
[340541628,1729426243662,-301.6798,0.00011,2]
[340541629,1729426243673,-26714.25839075,0.00011,2]
[340541630,1729426246171,-1696.875,0.00011,2]
[340541631,1729426246185,-69104.71916444,0.00011,2]
[340541632,1729426246198,-1161.71,0.00011009,2]
[340541633,1729426246207,-423.69759664,0.00011341,2]
[340541634,1729426246216,-152.82,0.00011507,2]
[340541635,1729426246226,-1000.0,0.00011522,2]
[340541636,1729426246235,-150.0,0.00011562,2]
[340541637,1729426246245,-595.01,0.00011792,2]
[340541638,1729426246255,-255.0,0.00011842,2]
[340541639,1729426246264,-300.0,0.00012,2]
[340541640,1729426246274,-152.82,0.00012055,2]
[340541641,1729426246284,-437.22917462,0.00012342,2]
[340541642,1729426246294,-3749.52358939,0.00012456,2]
[340541643,1729426246304,-152.82,0.00012603,2]
[340541644,1729426246314,-1000.0,0.00012802,2]
[340541645,1729426246323,-595.01,0.00013102,2]
[340541646,1729426246333,-163.07,0.00013117,2]
[340541647,1729426246343,-152.82,0.00013151,2]
[340541648,1729426246354,-1161.71,0.00013273,2]
[340541649,1729426246363,-200.0,0.00013699,2]
[340541650,1729426246372,-157053.54047491,0.000138,3]
[340541651,1729426246388,-528.026016,0.000138,3]
[340541652,1729426246410,-14368.04255035,0.000138,3]
[340541653,1729426246421,-313.73480416,0.000138,3]
[340541654,1729426246436,-2892.45439092,0.000138,3]
[340541655,1729426246458,-33908.407518,0.000138,3]
[340541656,1729426246469,-923.65100066,0.000138,3]
[340541657,1729426246479,-87310.26099934,0.000139,3]
[340541658,1729426261641,150.0,0.00010402,2]
[340541659,1729426312143,150.0,0.00010312,2]
[340541660,1729426312164,150.0,0.00010312,2]
[340541661,1729426312185,150.0,0.00010312,2]
[340541662,1729426312205,150.0,0.00010312,2]
[340541663,1729426312227,283.40350464,0.00010312,2]
[340541664,1729426312249,1035.14439536,0.00010312,2]
[340541672,1729426479919,-448.02309644,0.00010759,2]
[340541673,1729426479939,-2149.1037,0.000108,2]
[340541674,1729426479958,-3966.7968,0.00010859,2]
[340541675,1729426479979,-176.81,0.00010959,2]
[340541679,1729426500995,-305.9251,0.000107,2]
[340541698,1729426652875,503.83670254,0.00027,60]
[340541700,1729426661343,500.0,0.00027,60]
[340541706,1729426702608,500.0,0.00027,60]
[340541724,1729426822261,250.0,0.0001,2]
[340541755,1729427119807,681.21379504,9e-05,2]
[340541756,1729427124129,150.0,0.00010355,2]
[340541757,1729427124152,50.23831791,0.00010355,2]
[340541759,1729427129774,49631.41362617,0.000101,2]
[340541760,1729427135011,150.0,0.0001,2]
[340541761,1729427135032,80.15287469,0.0001,2]
[340541762,1729427136792,22000.0,9e-05,2]
[340541764,1729427155410,24034.3840687,6.94e-05,2]
[340541766,1729427162865,161.41145537,9e-05,2]
[340541767,1729427167883,150.0,0.0001,2]
[340541768,1729427167904,150.0,0.0001,2]
[340541769,1729427167924,37.04226923,0.0001,2]
[340541774,1729427233125,-559.0,0.0001089,2]
[340541775,1729427233146,-150.0,0.00010999,2]
[340541776,1729427233166,-214.87187015,0.00010999,2]
[340541777,1729427233187,-0.30110307,0.00010999,2]
[340541778,1729427234125,-499.69889693,0.00010999,2]
[340541779,1729427234146,-226.02801657,0.00010999,2]
[340541780,1729427234170,-707.26751055,0.00011,2]
[340541782,1729427239947,150.0,9.8e-05,2]
[340541783,1729427239966,55.0,9.8e-05,2]
[340541784,1729427244041,150.0,0.000101,2]
[340541785,1729427244060,96.49218862,0.000101,2]
[340541786,1729427254186,410.7635171,0.00010999,3]
[340541789,1729427277180,1012.3523845,0.00013,15]
[340541790,1729427279934,150.0,0.0001,2]
[340541791,1729427279955,49.2333,0.0001,2]
[340541796,1729427318553,150.0,0.0001,2]
[340541797,1729427318572,62.27113586,0.0001,2]
[340541798,1729427322147,150.0,0.0001,2]
[340541799,1729427322171,0.46969768,0.0001,2]
[340541816,1729427432319,-1937.715953,0.00010845,2]
[340541817,1729427432331,-167.06552914,0.000109,2]
[340541818,1729427432341,-1105.16851786,0.000109,2]
[340541819,1729427432352,-544.57707993,0.000109,2]
[340541820,1729427432363,-418.54007673,0.000109,2]
[340541821,1729427432374,-301.30696607,0.000109,2]
[340541822,1729427432391,-2889.16277618,0.000109,2]
[340541823,1729427432401,-300.0,0.00010999,2]
[340541824,1729427432410,-1086393.04959825,0.00011,2]
[340541825,1729427432421,-62579.98488701,0.00011,2]
[340541826,1729427432451,-315.64,0.00011,2]
[340541827,1729427432500,-2284.02488642,0.00011,2]
[340541828,1729427432511,-549632.83451973,0.00011,2]
[340541829,1729427432700,-95702.36182963,0.00011,2]
[340541830,1729427432756,-500.56005864,0.00011,2]
[340541833,1729427438428,-202.5996595,0.000109,2]
[340541834,1729427438438,-109.40034009,0.00011,2]
[340541835,1729427438450,-11294.39456971,0.00011,2]
[340541836,1729427438461,-30445.52016731,0.00011,2]
[340541837,1729427438700,-693.51935749,0.00011,2]
[340541838,1729427438712,-132648.53372934,0.00011,2]
[340541839,1729427438724,-131776.81730613,0.00011,2]
[340541840,1729427438821,-414228.23911032,0.00011,2]
[340541851,1729427440504,-1068.567265,0.00011,2]
[340541858,1729427443438,-1205.50888672,0.00011,2]
[340541859,1729427443603,-669.9196392,0.00011,2]
[340541860,1729427443614,-1255.06367634,0.00011,2]
[340541861,1729427443625,-67969.47933836,0.00011,2]
[340541862,1729427443636,-9048.12466035,0.00011,2]
[340541863,1729427443668,-21783.38013085,0.00011,2]
[340541864,1729427443728,-436.11645106,0.00011,2]
[340541865,1729427443742,-3170.430971,0.00011,2]
[340541866,1729427443791,-510.81800001,0.00011,2]
[340541867,1729427443802,-507.9676295,0.00011,2]
[340541868,1729427443814,-262.36485801,0.00011,2]
[340541875,1729427446652,-16342.54154421,0.00011,2]
[340541876,1729427446680,-13925.2788,0.00011,2]
[340541894,1729427718450,1038.32,0.00010328,2]
[340541907,1729427911955,-414.773,0.0001078,2]
[340541908,1729427912173,-166.27185547,0.0001078,2]
[340541909,1729428032237,-218.57964624,0.00010799,2]
[340541912,1729428223701,-986.4,0.00010544,2]
[340541915,1729428428154,-312.592,0.000109,2]
[340541916,1729428428174,-485.0363,0.000109,2]
[340541917,1729428428196,-820.7040423,0.000109,2]
[340541921,1729428631498,-150.0,0.0001087,2]
[340541922,1729428631507,-300.0,0.00010899,2]
[340541923,1729428631516,-358.065,0.000109,2]
[340541924,1729428631527,-389.3898,0.000109,2]
[340541925,1729428631537,-409.6602,0.000109,2]
[340541926,1729428631549,-835.378453,0.000109,2]
[340541927,1729428631563,-237.848747,0.000109,2]
[340541928,1729428631573,-173.87190492,0.000109,2]
[340541929,1729428631582,-786.2575,0.000109,2]
[340541930,1729428631592,-110.77461625,0.000109,2]
[340541931,1729428631607,-52.80563858,0.000109,2]
[340541932,1729428631616,-493.90267633,0.000109,2]
[340541933,1729428631627,-6628.79224382,0.000109,2]
[340541934,1729428631636,-150.0,0.00010932,2]
[340541935,1729428631645,-157.53,0.00010959,2]
[340541936,1729428631654,-154.75,0.00010959,2]
[340541937,1729428631663,-636.14,0.00010959,2]
[340541938,1729428631673,-254.40750035,0.0001099,2]
[340541939,1729428631682,-150.0,0.00010999,2]
[340541940,1729428631692,-127767.71204512,0.00011,2]
[340541941,1729428631707,-41465.69368089,0.00011,2]
[340541942,1729428631727,-17416.93220924,0.00011,2]
[340541943,1729428631740,-1713.24465,0.00011,2]
[340541944,1729428631752,-2191.77966096,0.00011,2]
[340541945,1729428631763,-1288.9997911,0.00011,2]
[340541946,1729428631774,-1100.75449853,0.00011,2]
[340541950,1729428637574,-981.22870002,0.00011,2]
[340541953,1729428637748,-5811.58541409,0.00011,2]
[340541954,1729428637760,-559.12249875,0.00011,2]
[340541955,1729428637797,-683.79,0.00011,2]
[340541956,1729428637808,-1345.23433619,0.00011,2]
[340541987,1729428639516,-534.899999,0.00011,2]
[340541988,1729428639529,-8301.148365,0.00011,2]
[340541989,1729428639573,-15862.36906521,0.00011,2]
[340541990,1729428639630,-268.03434266,0.00011,2]
[340541991,1729428639690,-346.47250755,0.00011,2]
[340541992,1729428639702,-262.61055778,0.00011,2]
[340541993,1729428639714,-9000.0,0.00011,2]
[340541995,1729428642301,150.0,0.0001,2]
[340541996,1729428642322,100.0,0.0001,2]
[340542002,1729428642596,-244059.22479008,0.00011,2]
[340542003,1729428642611,-427.18428536,0.00011,2]
[340542004,1729428642623,-537.88,0.00011,2]
[340542005,1729428642634,-935.05871083,0.00011,2]
[340542006,1729428642938,-993.0,0.00011,2]
[340542011,1729428711052,289.17321453,0.00010337,2]
[340542012,1729428711075,647.90678547,0.00010337,2]
[340542013,1729428729010,-221.06490874,0.000109,2]
[340542014,1729428729032,-1318.0814,0.000109,2]
[340542015,1729428729056,-1000.0,0.00010999,2]
[340542016,1729428729078,-150.0,0.00010999,2]
[340542017,1729428729099,-300.0,0.00010999,2]
[340542018,1729428729124,-610.85369126,0.00011,2]
[340542019,1729428962805,888.0,0.00027,60]
[340542020,1729428970313,-1650.0,0.000108,2]
[340542021,1729428983868,19774.76026245,0.000125,3]
[340542023,1729429262691,890.22,0.00010245,2]
[340542024,1729429456784,238.0,0.00026664,120]
[340542025,1729429472288,-2774.728029,0.00010519,2]
[340542026,1729429630146,-150.0,0.0001077,2]
[340542027,1729429630168,-11.83323423,0.0001078,2]
[340542028,1729429773083,-150.0,0.00010765,2]
[340542029,1729429773105,-319.98576577,0.0001078,2]
[340542030,1729429773126,-932.8633,0.000109,2]
[340542031,1729429773147,-221.06490874,0.000109,2]
[340542032,1729429773171,-163.58025479,0.000109,2]
[340542033,1729429773193,-166.38,0.00010959,2]
[340542034,1729429773216,-176.81,0.00010959,2]